bitfinex-derivatives/quotes_SOLF0:USTF0_20220101
["timestamp","ask_amount","ask_price","bid_price","bid_amount"]
[1641038131905,4.13917124,171.54,171.5,12.41738392]
[1641038132605,27.66479,171.57,171.5,12.41738392]
[1641038133306,4.1391732,171.54,171.5,12.41738392]
[1641038133906,27.66479,171.57,171.5,12.41738392]
[1641038134507,4.13911371,171.54,171.5,12.41738392]
[1641038135209,4.13904899,171.55,171.5,12.41738392]
[1641038135408,4.13904899,171.55,171.51,12.41738392]
[1641038136008,27.66479,171.57,171.51,12.41738392]
[1641038136209,4.13904579,171.54,171.5,12.41738392]
[1641038137108,27.66479,171.57,171.5,12.41738392]
[1641038137309,4.13925821,171.53,171.49,18.44707508]
[1641038137908,3.0,171.56,171.49,18.44707508]
[1641038138510,27.66479,171.57,171.49,18.44707508]
[1641038138708,4.13980595,171.51,171.47,24.24607508]
[1641038139710,30.3411,171.56,171.47,24.24607508]
[1641038139909,30.66479,171.57,171.47,24.24607508]
[1641038139910,4.13956921,171.52,171.48,12.41738392]
[1641038140615,4.13968419,171.51,171.47,24.24607508]
[1641038141416,13.52878107,171.56,171.47,24.24607508]
[1641038141616,10.52878107,171.56,171.47,24.24607508]
[1641038142419,4.13981785,171.51,171.47,18.21638392]
[1641038142916,10.52878107,171.56,171.47,18.21638392]
[1641038143720,4.13981699,171.51,171.47,18.21638392]
[1641038144420,10.52878107,171.56,171.47,18.21638392]
[1641038144823,13.52878107,171.56,171.47,18.21638392]
[1641038145021,4.13978151,171.51,171.47,18.21638392]
[1641038145422,13.52878107,171.56,171.47,18.21638392]
[1641038145622,10.52878107,171.56,171.47,18.21638392]
[1641038146321,4.13979009,171.51,171.47,24.24607508]
[1641038146522,4.13979009,171.51,171.47,18.44707508]
[1641038147121,27.66479,171.57,171.47,18.44707508]
[1641038147322,4.13950429,171.53,171.49,12.41738392]
[1641038147924,4.13962823,171.52,171.48,40.08217392]
[1641038148522,27.66479,171.57,171.48,40.08217392]
[1641038148722,4.13957803,171.53,171.49,18.44707508]
[1641038149424,27.66479,171.57,171.49,18.44707508]
[1641038149926,4.13955524,171.53,171.49,18.44707508]
[1641038150627,27.66479,171.57,171.49,18.44707508]
[1641038150827,31.7057,171.59,171.49,18.44707508]
[1641038151026,27.66479,171.6,171.5,3.0]
[1641038151227,27.66479,171.6,171.51,31.4328]
[1641038151927,4.13930773,171.55,171.53,27.66479]
[1641038152331,32.40776802,171.62,171.53,27.66479]
[1641038152332,32.40776802,171.62,171.54,5.82156891]
[1641038152530,33.53126502,171.67,171.55,3.0]
[1641038152730,33.53126502,171.67,171.61,5.81987487]
[1641038152929,33.53126502,171.67,171.61,8.81987487]
[1641038153329,33.53126502,171.67,171.61,5.81987487]
[1641038153530,31.69126502,171.67,171.62,3.0]
[1641038153730,29.59126502,171.67,171.66,55.32958]
[1641038154131,29.59126502,171.73,171.66,55.32958]
[1641038154331,29.59126502,171.73,171.66,58.32958]
[1641038154532,29.59126502,171.73,171.66,63.03258]
[1641038154932,29.59126502,171.73,171.66,65.85059257]
[1641038155140,27.66479,171.77,171.66,65.85059257]
[1641038155636,30.66479,171.77,171.66,62.23310098]
[1641038155837,27.66479,171.77,171.69,27.66479]
[1641038156033,10.50585955,171.76,171.69,27.66479]
[1641038157839,3.0,171.78,171.73,27.66479]
[1641038159139,3.0,171.77,171.73,27.66479]
[1641038159339,10.50585955,171.81,171.73,27.66479]
[1641038159839,3.0,171.78,171.73,27.66479]
[1641038160439,10.50585955,171.81,171.73,33.48043408]
[1641038161843,10.50585955,171.81,171.8,27.66479]
[1641038162346,3.0,171.88,171.8,27.66479]
[1641038162743,3.0,171.83,171.8,27.66479]
[1641038164247,3.0,171.81,171.74,31.0644]
[1641038164446,3.0,171.77,171.73,27.66479]
[1641038164648,3.0,171.85,171.73,27.66479]
[1641038164946,3.0,171.84,171.73,27.66479]
[1641038165247,3.0,171.78,171.73,27.66479]
[1641038165749,52.6071595,171.86,171.73,27.66479]
[1641038165951,3.0,171.79,171.73,27.66479]
[1641038166751,30.66479,171.84,171.73,27.66479]
[1641038167050,3.0,171.77,171.73,27.66479]
[1641038167551,3.0,171.78,171.73,27.66479]
[1641038167750,3.0,171.79,171.73,27.66479]
[1641038168050,25.4206872,171.83,171.73,27.66479]
[1641038168449,3.0,171.77,171.73,27.66479]
[1641038168652,3.0,171.8,171.73,27.66479]
[1641038168951,10.50585955,171.83,171.73,27.66479]
[1641038169251,3.0,171.8,171.73,27.66479]
[1641038169451,10.50585955,171.83,171.73,27.66479]
[1641038170151,3.0,171.77,171.73,27.66479]
[1641038170451,10.50585955,171.83,171.73,27.66479]
[1641038171051,3.0,171.75,171.73,27.66479]
[1641038171256,3.0,171.8,171.73,27.66479]
[1641038171452,3.0,171.74,171.73,27.66479]
[1641038171652,3.0,171.74,171.68,5.81750487]
[1641038171954,3.0,171.74,171.7,27.66479]
[1641038173054,33.08405238,171.77,171.7,27.66479]
[1641038173554,3.0,171.75,171.7,27.66479]
[1641038174154,3.0,171.74,171.7,27.66479]
[1641038174355,33.08405238,171.78,171.7,27.66479]
[1641038174555,3.0,171.74,171.7,27.66479]
[1641038177860,33.08405238,171.77,171.7,27.66479]
[1641038178062,3.0,171.75,171.7,27.66479]
[1641038178461,33.08405238,171.77,171.7,27.66479]
[1641038178662,3.0,171.74,171.7,27.66479]
[1641038180866,33.08405238,171.78,171.7,27.66479]
[1641038181067,3.0,171.74,171.7,27.66479]
[1641038181568,33.08405238,171.78,171.7,27.66479]
[1641038181767,3.0,171.74,171.7,27.66479]
[1641038183671,33.08405238,171.77,171.7,27.66479]
[1641038184869,3.0,171.76,171.7,27.66479]
[1641038186772,33.08405238,171.77,171.7,27.66479]
[1641038187573,3.0,171.71,171.7,27.66479]
[1641038187772,3.0,171.71,171.65,12.41738392]
[1641038188173,3.0,171.68,171.64,27.66479]
[1641038188774,33.08405238,171.74,171.64,27.66479]
[1641038188973,3.0,171.7,171.64,40.08217392]
[1641038189972,10.50278973,171.74,171.64,40.08217392]
[1641038190174,3.0,171.68,171.64,40.08217392]
[1641038190378,10.50278973,171.74,171.64,40.08217392]
[1641038190574,3.0,171.68,171.64,40.08217392]
[1641038191376,10.50278973,171.74,171.64,40.08217392]
[1641038191575,46.58684211,171.74,171.64,27.66479]
[1641038191974,3.0,171.69,171.64,27.66479]
[1641038192673,27.66479,171.71,171.64,27.66479]
[1641038193875,3.0,171.74,171.64,27.66479]
[1641038194376,3.0,171.74,171.62,5.81936685]
[1641038196177,3.0,171.68,171.62,5.81936685]
[1641038196476,3.0,171.7,171.62,5.81936685]
[1641038196676,27.66479,171.72,171.62,5.81936685]
[1641038196877,3.0,171.69,171.62,5.81936685]
[1641038197479,3.0,171.7,171.62,5.81936685]
[1641038197680,27.66479,171.72,171.62,5.81936685]
[1641038197882,3.0,171.7,171.62,5.81936685]
[1641038198081,3.0,171.68,171.63,27.66479]
[1641038198281,3.0,171.69,171.63,27.66479]
[1641038198482,27.66479,171.72,171.63,27.66479]
[1641038198682,3.0,171.69,171.63,27.66479]
[1641038198883,3.0,171.7,171.63,27.66479]
[1641038199082,3.0,171.69,171.63,27.66479]
[1641038200386,27.66479,171.72,171.63,27.66479]
[1641038200989,3.0,171.68,171.63,27.66479]
[1641038201186,27.66479,171.72,171.63,27.66479]
[1641038202388,3.0,171.7,171.63,27.66479]
[1641038202588,3.0,171.69,171.63,27.66479]
[1641038203088,10.50611843,171.71,171.63,27.66479]
[1641038204788,3.0,171.7,171.63,27.66479]
[1641038206692,3.0,171.7,171.63,40.08217392]
[1641038208195,3.0,171.7,171.63,27.66479]
[1641038208993,3.0,171.69,171.63,27.66479]
[1641038209194,3.0,171.68,171.63,27.66479]
[1641038209493,10.50588583,171.71,171.63,27.66479]
[1641038209994,3.0,171.7,171.63,27.66479]
[1641038210493,10.50588583,171.71,171.63,27.66479]
[1641038210695,3.0,171.7,171.63,27.66479]
[1641038210894,3.0,171.69,171.63,27.66479]
[1641038211295,10.50588583,171.71,171.63,27.66479]
[1641038211494,3.0,171.69,171.63,27.66479]
[1641038211696,3.0,171.67,171.63,27.66479]
[1641038212298,3.0,171.67,171.63,40.08217392]
[1641038212900,7.13629305,171.67,171.63,40.08217392]
[1641038213300,3.0,171.64,171.63,12.41738392]
[1641038213502,3.0,171.64,171.59,33.08405238]
[1641038213699,3.0,171.6,171.59,33.08405238]
[1641038213902,4.13629305,171.67,171.59,33.08405238]
[1641038214102,3.0,171.62,171.59,33.08405238]
[1641038214300,4.13629305,171.66,171.58,38.90494356]
[1641038214301,3.0,171.6,171.58,38.90494356]
[1641038214501,27.66479,171.63,171.58,38.90494356]
[1641038214700,3.0,171.61,171.58,38.90494356]
[1641038215201,4.13629305,171.61,171.58,5.82089118]
[1641038215704,3.0,171.6,171.58,5.82089118]
[1641038216703,4.13629305,171.61,171.58,5.82089118]
[1641038216902,3.0,171.6,171.58,5.82089118]
[1641038217103,27.66479,171.63,171.58,5.82089118]
[1641038217304,2.43387687,171.59,171.58,5.82089118]
[1641038218605,27.66479,171.63,171.55,27.66479]
[1641038219006,2.43387687,171.6,171.55,27.66479]
[1641038219607,27.66479,171.63,171.55,27.66479]
[1641038220008,31.80262055,171.63,171.55,27.66479]
[1641038220307,2.43387687,171.6,171.55,27.66479]
[1641038220707,31.80262055,171.63,171.55,27.66479]
[1641038221709,2.43387687,171.57,171.55,27.66479]
[1641038221907,31.80262055,171.63,171.55,27.66479]
[1641038222107,2.43387687,171.57,171.55,27.66479]
[1641038222308,2.43387687,171.56,171.52,65.54654533]
[1641038222512,2.43387687,171.56,171.52,5.82275533]
[1641038222709,3.0,171.6,171.52,5.82275533]
[1641038222908,2.43387687,171.57,171.52,5.82275533]
[1641038223108,6.57170742,171.58,171.52,11.86059172]
[1641038223309,4.13783055,171.58,171.52,11.86059172]
[1641038224412,2.43387687,171.56,171.52,5.82275533]
[1641038224609,4.13783055,171.57,171.52,5.82275533]
[1641038225212,4.13783055,171.58,171.52,5.82275533]
[1641038225412,2.43387687,171.53,171.51,6.03783639]
[1641038225614,2.43387687,171.52,171.51,6.03783639]
[1641038226014,2.43387687,171.52,171.5,33.08405238]
[1641038226218,27.66479,171.51,171.5,33.08405238]
[1641038226415,30.09866687,171.51,171.44,33.08405238]
[1641038226817,2.43387687,171.47,171.44,33.08405238]
[1641038227016,7.02187687,171.47,171.44,33.08405238]
[1641038227416,7.02187687,171.47,171.44,6.0386052]
[1641038227616,4.588,171.47,171.44,6.0386052]
[1641038228017,4.588,171.47,171.43,0.08]
[1641038229518,7.02187687,171.47,171.43,0.08]
[1641038230017,4.588,171.47,171.43,0.08]
[1641038230219,4.13783055,171.5,171.43,0.64612313]
[1641038230418,4.13783055,171.5,171.48,5.82428143]
[1641038230919,4.13783055,171.54,171.48,5.82428143]
[1641038231119,2.43387687,171.52,171.47,29.9924]
[1641038231321,4.13783055,171.54,171.46,33.08405238]
[1641038231720,2.43387687,171.5,171.46,33.08405238]
[1641038232120,4.13783055,171.54,171.46,33.08405238]
[1641038232320,2.43387687,171.5,171.46,33.08405238]
[1641038232521,27.66479,171.53,171.46,33.08405238]
[1641038232721,4.13783055,171.52,171.44,60.74884238]
[1641038232921,4.13783055,171.52,171.44,61.31496551]
[1641038233323,4.13783055,171.52,171.45,0.56612313]
[1641038233523,4.13783055,171.51,171.48,0.56612313]
[1641038233822,4.13783055,171.51,171.46,5.82479031]
[1641038234222,33.08405238,171.59,171.48,27.66479]
[1641038234223,4.13783055,171.55,171.48,27.66479]
[1641038234425,6.57170742,171.55,171.48,27.66479]
[1641038234723,2.43387687,171.52,171.48,27.66479]
[1641038234928,6.57170742,171.55,171.48,27.66479]
[1641038235123,4.13783055,171.53,171.49,6.0386052]
[1641038237524,10.41083055,171.53,171.49,6.0386052]
[1641038237728,2.43387687,171.5,171.49,6.0386052]
[1641038238127,2.43387687,171.5,171.45,6.0386052]
[1641038238528,4.13783055,171.51,171.45,6.0386052]
[1641038238925,4.13783055,171.5,171.45,6.0386052]
[1641038239926,2.43387687,171.49,171.45,6.0386052]
[1641038240127,4.13783055,171.5,171.45,6.0386052]
[1641038240327,4.13783055,171.49,171.45,6.0386052]
[1641038241228,2.43387687,171.51,171.45,6.0386052]
[1641038241229,4.13783055,171.5,171.45,6.0386052]
[1641038241828,4.13783055,171.51,171.45,6.0386052]
[1641038243730,4.13783055,171.51,171.47,12.42062995]
[1641038243931,4.13783055,171.51,171.47,17.50062995]
[1641038244331,4.13783055,171.51,171.49,27.66479]
[1641038244533,60.74884238,171.59,171.49,40.08541995]
[1641038244534,4.13783055,171.53,171.49,40.08541995]
[1641038246233,2.43387687,171.5,171.49,40.08541995]
[1641038246434,2.43387687,171.5,171.49,12.42062995]
[1641038247237,2.43387687,171.5,171.45,42.98204759]
[1641038247238,4.13783055,171.52,171.48,12.42062995]
[1641038248037,4.13783055,171.53,171.49,12.42062995]
[1641038249140,2.43387687,171.52,171.49,12.42062995]
[1641038249341,4.13783055,171.53,171.49,12.42062995]
[1641038249747,4.13783055,171.51,171.47,40.08541995]
[1641038249944,4.13783055,171.51,171.47,40.65154308]
[1641038250143,4.13783055,171.51,171.47,40.08541995]
[1641038250345,6.57170742,171.52,171.5,27.66479]
[1641038250544,4.13783055,171.52,171.5,27.66479]
[1641038251147,4.13783055,171.53,171.5,27.66479]
[1641038251345,6.57170742,171.53,171.5,27.66479]
[1641038251844,4.13783055,171.52,171.5,27.66479]
[1641038252044,6.57170742,171.52,171.5,27.66479]
[1641038252247,4.13783055,171.52,171.5,27.66479]
[1641038253250,4.13783055,171.52,171.48,12.42062995]
[1641038253448,10.51992876,171.57,171.48,12.42062995]
[1641038253449,2.43387687,171.51,171.48,12.42062995]
[1641038253649,4.13783055,171.53,171.48,12.42062995]
[1641038253849,6.57170742,171.53,171.48,12.42062995]
[1641038254250,4.13783055,171.52,171.48,18.45894894]
[1641038254650,4.13783055,171.52,171.49,5.82394223]
[1641038255252,2.43387687,171.56,171.49,5.82394223]
[1641038255452,4.1393283,171.54,171.49,18.24457218]
[1641038255952,4.1393283,171.54,171.49,18.81069531]
[1641038256252,2.43387687,171.56,171.49,18.24457218]
[1641038256454,2.43387687,171.56,171.55,27.66479]
[1641038257457,31.0477,171.62,171.55,27.66479]
[1641038257655,2.43387687,171.61,171.55,27.66479]
[1641038257854,33.08405238,171.65,171.55,27.66479]
[1641038258055,2.43387687,171.61,171.55,27.66479]
[1641038258254,2.43387687,171.63,171.56,18.45833726]
[1641038258455,2.43387687,171.63,171.6,27.66479]
[1641038258655,10.51501048,171.65,171.6,27.66479]
[1641038258856,2.43387687,171.63,171.6,27.66479]
[1641038259656,13.51501048,171.67,171.6,27.66479]
[1641038261058,2.43387687,171.61,171.6,27.66479]
[1641038261259,2.43387687,171.61,171.57,12.42062995]
[1641038261457,2.43387687,171.59,171.57,12.42062995]
[1641038261661,2.43387687,171.58,171.57,12.42062995]
[1641038261958,3.0,171.65,171.55,40.08541995]
[1641038262358,33.08405238,171.67,171.55,40.08541995]
[1641038262558,36.08405238,171.67,171.55,67.75020995]
[1641038262758,2.43387687,171.6,171.55,67.75020995]
[1641038263359,2.43387687,171.6,171.56,12.42062995]
[1641038263559,2.43387687,171.6,171.56,18.45897341]
[1641038263959,35.0015,171.65,171.56,18.45897341]
[1641038264259,33.08405238,171.67,171.52,38.90680771]
[1641038264260,3.0,171.63,171.54,12.42062995]
[1641038265160,8.078,171.63,171.53,40.08541995]
[1641038265461,2.43387687,171.58,171.53,40.08541995]
[1641038265663,5.078,171.63,171.53,40.08541995]
[1641038265962,15.59226301,171.63,171.53,40.08541995]
[1641038267461,2.43387687,171.59,171.53,40.08541995]
[1641038267663,15.59226301,171.63,171.53,40.08541995]
[1641038268365,2.43387687,171.59,171.53,40.08541995]
[1641038268562,2.43387687,171.59,171.53,27.66479]
[1641038269762,3.0,171.6,171.53,27.66479]
[1641038269963,2.43387687,171.54,171.52,12.42062995]
[1641038270162,2.43387687,171.54,171.5,40.08541995]
[1641038270864,3.0,171.59,171.5,40.08541995]
[1641038271262,2.43387687,171.55,171.5,40.08541995]
[1641038271463,60.74884238,171.61,171.5,40.08541995]
[1641038271866,2.43387687,171.56,171.52,12.42062995]
[1641038272565,2.43387687,171.56,171.53,12.42062995]
[1641038273467,2.43387687,171.55,171.53,12.42062995]
[1641038273667,2.43387687,171.54,171.53,12.42062995]
[1641038274670,2.43387687,171.54,171.5,40.08541995]
[1641038274872,2.43387687,171.52,171.5,40.08541995]
[1641038275171,3.0,171.59,171.5,40.08541995]
[1641038275571,2.43387687,171.53,171.5,40.08541995]
[1641038275772,2.43387687,171.54,171.5,40.08541995]
[1641038276178,3.0,171.58,171.5,40.08541995]
[1641038276373,2.43387687,171.52,171.5,40.08541995]
[1641038276773,27.66479,171.57,171.5,40.08541995]
[1641038276973,2.43387687,171.51,171.5,40.08541995]
[1641038277273,2.43387687,171.51,171.5,12.42062995]
[1641038277673,3.0,171.55,171.5,12.42062995]
[1641038277874,3.0,171.55,171.47,12.42062995]
[1641038278074,13.5212382,171.56,171.47,12.42062995]
[1641038278974,10.5212382,171.56,171.47,12.42062995]
[1641038279175,10.5212382,171.56,171.48,3.0]
[1641038279375,63.74884238,171.61,171.49,12.42062995]
[1641038279674,60.74884238,171.61,171.49,12.42062995]
[1641038279974,3.0,171.59,171.49,12.42062995]
[1641038280175,63.74884238,171.61,171.49,12.42062995]
[1641038280375,13.51938348,171.6,171.49,18.4597955]
[1641038280775,13.51938348,171.6,171.51,27.66479]
[1641038281675,10.51938348,171.6,171.51,27.66479]
[1641038282576,3.0,171.61,171.52,18.45831554]
[1641038282775,3.0,171.6,171.52,18.45831554]
[1641038283476,13.51938348,171.62,171.52,12.42062995]
[1641038283677,10.51938348,171.6,171.51,27.66479]
[1641038284478,3.0,171.61,171.51,40.08541995]
[1641038284678,30.66479,171.6,171.51,40.08541995]
[1641038284879,27.66479,171.6,171.51,40.08541995]
[1641038285479,30.66479,171.6,171.51,40.08541995]
[1641038285679,27.66479,171.6,171.51,40.08541995]
[1641038285880,30.66479,171.6,171.51,40.08541995]
[1641038286379,10.51835426,171.59,171.5,12.42062995]
[1641038286581,3.0,171.58,171.5,12.42062995]
[1641038286780,27.66479,171.57,171.5,12.42062995]
[1641038286979,13.51835426,171.59,171.5,12.42062995]
[1641038287180,10.51835426,171.59,171.48,42.36462995]
[1641038287679,13.51835426,171.59,171.48,42.36462995]
[1641038287880,10.51835426,171.59,171.49,18.45854206]
[1641038288682,10.51835426,171.59,171.49,46.12333206]
[1641038288882,10.51835426,171.59,171.49,40.08541995]
[1641038289083,10.51835426,171.59,171.49,27.66479]
[1641038289481,10.51835426,171.59,171.49,40.08541995]
[1641038291890,10.51835426,171.59,171.5,12.42062995]
[1641038292088,13.51835426,171.59,171.5,18.45852314]
[1641038292488,13.51835426,171.59,171.5,12.42062995]
[1641038292689,13.51835426,171.59,171.49,40.08541995]
[1641038292989,10.51835426,171.59,171.49,40.08541995]
[1641038293390,3.0,171.56,171.49,12.42062995]
[1641038293589,10.51835426,171.59,171.49,12.42062995]
[1641038293590,3.0,171.57,171.49,12.42062995]
[1641038294394,3.0,171.58,171.49,12.42062995]
[1641038294596,3.0,171.57,171.48,42.36462995]
[1641038294896,30.66479,171.57,171.48,42.36462995]
[1641038295397,30.66479,171.57,171.48,29.944]
[1641038295997,30.66479,171.57,171.46,27.66479]
[1641038296299,27.66479,171.57,171.46,27.66479]
[1641038296497,30.66479,171.57,171.46,27.66479]
[1641038296899,27.66479,171.57,171.46,27.66479]
[1641038297099,37.45879,171.57,171.46,27.66479]
[1641038299098,34.45879,171.57,171.46,27.66479]
[1641038299901,34.45879,171.57,171.46,40.08541995]
[1641038300105,6.794,171.57,171.46,40.08541995]
[1641038300403,3.0,171.59,171.46,40.08541995]
[1641038300602,3.0,171.59,171.46,43.39715129]
[1641038300805,3.0,171.59,171.47,18.4423078]
[1641038301005,3.0,171.59,171.51,27.66479]
[1641038301204,3.0,171.58,171.51,27.66479]
[1641038301404,3.0,171.57,171.46,43.39715129]
[1641038301603,3.0,171.57,171.46,40.08541995]
[1641038301804,3.0,171.58,171.46,40.08541995]
[1641038302603,10.49225702,171.59,171.46,40.08541995]
[1641038302803,13.49225702,171.59,171.46,40.08541995]
[1641038303004,13.49225702,171.59,171.5,27.66479]
[1641038303206,3.0,171.59,171.5,27.66479]
[1641038304204,3.0,171.58,171.5,27.66479]
[1641038304405,3.0,171.57,171.46,40.08541995]
[1641038304806,3.0,171.58,171.46,40.08541995]
[1641038305204,27.66479,171.56,171.46,40.08541995]
[1641038305703,27.66479,171.56,171.46,27.66479]
[1641038305904,33.46979,171.56,171.46,27.66479]
[1641038313112,5.805,171.56,171.47,3.0]
[1641038313311,33.08405238,171.59,171.47,3.0]
[1641038313513,33.08405238,171.59,171.47,8.82462067]
[1641038313713,33.08405238,171.59,171.5,27.66479]
[1641038314112,30.66479,171.6,171.5,27.66479]
[1641038314313,27.66479,171.6,171.5,27.66479]
[1641038314512,27.66479,171.6,171.51,30.399]
[1641038315516,27.66479,171.6,171.53,27.66479]
[1641038315716,4.12817415,171.55,171.53,27.66479]
[1641038316214,10.51927479,171.59,171.53,27.66479]
[1641038317216,13.51927479,171.59,171.51,30.399]
[1641038317416,13.51927479,171.59,171.5,27.66479]
[1641038317417,4.13909374,171.54,171.5,40.08541995]
[1641038318118,4.13909374,171.52,171.5,27.66479]
[1641038318816,4.13909374,171.53,171.5,27.66479]
[1641038319619,4.13909374,171.52,171.5,27.66479]
[1641038322922,4.13909374,171.53,171.5,27.66479]
[1641038323822,4.13909374,171.54,171.49,12.42062995]
[1641038324522,4.13909374,171.53,171.49,12.42062995]
[1641038325322,4.13909374,171.53,171.48,6.0357991]
[1641038325323,4.13909374,171.54,171.5,12.42062995]
[1641038326623,4.13909374,171.54,171.5,18.45642905]
[1641038328124,4.13909374,171.53,171.49,40.08541995]
[1641038329727,4.13909374,171.54,171.5,18.45857122]
[1641038332231,4.13909374,171.54,171.5,12.42062995]
[1641038332429,4.13909374,171.53,171.49,40.08541995]
[1641038337935,4.13909374,171.53,171.52,27.66479]
[1641038338736,10.51927479,171.59,171.52,27.66479]
[1641038338934,4.13043478,171.55,171.52,27.66479]
[1641038339638,4.13043478,171.55,171.49,27.66479]
[1641038339838,4.13048243,171.56,171.49,40.08541995]
[1641038340439,4.13066162,171.55,171.49,27.66479]
[1641038341139,30.66479,171.59,171.49,27.66479]
[1641038341847,4.13065559,171.55,171.49,27.66479]
[1641038342442,7.13065559,171.55,171.48,15.73237901]
[1641038342646,3.0,171.52,171.48,12.42062995]
[1641038342841,27.66479,171.59,171.48,12.42062995]
[1641038343041,3.0,171.55,171.48,12.42062995]
[1641038343241,27.66479,171.59,171.48,12.42062995]
[1641038343444,3.0,171.53,171.48,12.42062995]
[1641038343840,7.13174732,171.5,171.43,12.50062995]
[1641038344242,7.13174732,171.5,171.43,12.42062995]
[1641038344842,4.13174732,171.5,171.43,12.42062995]
[1641038345345,27.66479,171.52,171.43,12.42062995]
[1641038345745,4.13201585,171.49,171.42,49.30436403]
[1641038346446,27.66479,171.52,171.42,49.30436403]
[1641038347446,4.13211387,171.48,171.42,36.88373408]
[1641038348248,31.9329,171.51,171.42,36.88373408]
[1641038348849,4.1321802,171.48,171.42,36.88373408]
[1641038349252,4.1321802,171.48,171.42,31.0574166]
[1641038349551,3.0,171.48,171.42,3.3926266]
[1641038349851,3.0,171.47,171.42,0.08]
[1641038350251,27.66479,171.46,171.42,0.08]
[1641038350652,4.14174794,171.43,171.42,0.08]
[1641038351652,3.0,171.49,171.42,0.08]
[1641038352454,33.08405238,171.5,171.42,0.08]
[1641038352654,3.0,171.48,171.42,0.08]
[1641038353055,36.08405238,171.5,171.42,0.08]
[1641038353257,4.14155516,171.45,171.42,0.08]
[1641038353855,3.0,171.48,171.42,0.08]
[1641038354455,3.0,171.47,171.42,0.08]
[1641038354955,31.9329,171.51,171.42,0.08]
[1641038354956,7.14135118,171.46,171.42,18.53935118]
[1641038355155,4.14135118,171.46,171.42,18.53935118]
[1641038355558,8.076,171.47,171.42,18.53935118]
[1641038355759,4.14160783,171.45,171.42,0.08]
[1641038356460,5.076,171.47,171.42,0.08]
[1641038356759,4.14183574,171.44,171.42,0.08]
[1641038357661,4.14157323,171.45,171.42,0.08]
[1641038358463,8.076,171.47,171.42,0.08]
[1641038358665,5.076,171.47,171.42,0.08]
[1641038358866,8.076,171.47,171.42,0.08]
[1641038359067,5.076,171.47,171.42,0.08]
[1641038359267,4.14160533,171.45,171.42,0.08]
[1641038359966,4.14170522,171.44,171.42,0.08]
[1641038360971,5.076,171.47,171.42,0.08]
[1641038361166,30.66479,171.49,171.42,0.08]
[1641038361368,3.0,171.47,171.42,0.08]
[1641038361567,4.14183146,171.44,171.42,0.08]
[1641038362266,8.456,171.47,171.42,0.08]
[1641038362466,4.14188325,171.43,171.42,0.08]
[1641038363272,39.5849,171.47,171.42,0.08]
[1641038363971,4.14177602,171.43,171.42,0.08]
[1641038364974,36.5849,171.47,171.42,0.08]
[1641038365573,4.14163155,171.43,171.42,0.08]
[1641038366374,4.1416281,171.44,171.42,0.08]
[1641038366975,4.14166783,171.43,171.42,0.08]
[1641038367174,4.14166783,171.43,171.39,40.09043975]
[1641038367675,5.456,171.47,171.41,12.42564975]
[1641038367676,4.14166783,171.45,171.41,12.42564975]
[1641038368275,4.14166783,171.45,171.41,15.42564975]
[1641038368478,4.14166783,171.46,171.42,12.42564975]
[1641038368677,4.14166783,171.46,171.45,27.66479]
[1641038369180,4.14166783,171.47,171.45,27.66479]
[1641038370881,4.14166783,171.48,171.45,27.66479]
[1641038373586,4.14166783,171.47,171.45,27.66479]
[1641038374586,4.14166783,171.46,171.42,12.42564975]
[1641038375686,4.14166783,171.44,171.4,40.09043975]
[1641038377289,4.14166783,171.45,171.41,18.46449428]
[1641038377990,4.14166783,171.46,171.42,12.42564975]
[1641038378893,4.14166783,171.46,171.43,27.66479]
[1641038382396,4.14166783,171.44,171.43,27.66479]
[1641038382897,8.62166783,171.44,171.4,12.42564975]
[1641038383595,8.62166783,171.44,171.4,18.46462899]
[1641038384195,8.62166783,171.44,171.39,42.43074975]
[1641038384795,8.62166783,171.44,171.4,27.66479]
[1641038385197,8.62166783,171.44,171.4,46.12927183]
[1641038385597,8.62166783,171.44,171.4,40.09043975]
[1641038386297,4.48,171.44,171.41,18.46442718]
[1641038386798,27.66479,171.43,171.41,18.46442718]
[1641038387197,27.66479,171.43,171.41,12.42564975]
[1641038387399,31.80645783,171.43,171.39,42.43074975]
[1641038388200,31.80645783,171.43,171.39,12.42564975]
[1641038388801,4.14166783,171.43,171.39,12.42564975]